bitfinex/quotes_ETHUSD_20260225
["timestamp","ask_amount","ask_price","bid_price","bid_amount"]
[1772063157555,3.17963219,2047.0,2046.5,0.0011]
[1772063158848,4.40099131,2046.9,2046.5,0.0011]
[1772063160061,3.17963219,2046.9,2046.5,0.0011]
[1772063160261,3.65272295,2047.2,2046.5,0.0011]
[1772063160262,1.22128792,2047.1,2046.5,0.0011]
[1772063160572,1.22128792,2047.1,2046.2,0.0011]
[1772063160573,3.17963219,2046.5,2046.2,0.0011]
[1772063160867,3.17963219,2046.0,2045.5,0.0011]
[1772063161242,3.17963219,2046.4,2045.5,0.0011]
[1772063162036,1.22159784,2046.5,2045.5,0.0011]
[1772063162237,3.17963219,2046.4,2045.5,0.0011]
[1772063162538,1.22159784,2046.5,2045.5,0.0011]
[1772063162539,3.20658418,2046.6,2045.5,1.67482295]
[1772063162739,1.22150848,2046.7,2045.5,1.67482295]
[1772063162949,4.40107581,2046.8,2045.9,1.2219561]
[1772063163741,3.17963219,2046.7,2045.6,1.22213531]
[1772063164159,3.17963219,2046.2,2045.5,0.0011]
[1772063164442,3.17963219,2046.2,2045.5,1.22328868]
[1772063164743,3.17963219,2046.2,2045.5,0.0011]
[1772063165082,3.17963219,2046.0,2045.5,0.0011]
[1772063165746,3.17963219,2045.9,2045.3,0.0011]
[1772063167139,4.4015937,2045.9,2045.3,0.0011]
[1772063168376,3.17963219,2045.8,2045.3,0.0011]
[1772063168566,3.17963219,2045.8,2045.5,0.0011]
[1772063169487,4.40168439,2045.8,2045.5,0.0011]
[1772063169791,1.86096256,2046.2,2045.5,0.0011]
[1772063169792,1.988,2046.5,2045.6,1.86096256]
[1772063170075,3.17963219,2046.3,2045.5,0.0011]
[1772063171160,1.86096256,2046.2,2045.5,0.0011]
[1772063171406,3.17963219,2046.2,2045.5,0.0011]
[1772063171756,4.40146247,2046.2,2045.5,0.0011]
[1772063172447,5.04059475,2045.9,2045.5,0.0011]
[1772063172789,3.17963219,2045.9,2045.5,0.0011]
[1772063173749,1.22201583,2045.8,2045.5,0.0011]
[1772063173948,6.26261058,2045.8,2045.3,0.0011]
[1772063174148,1.86096256,2045.6,2045.3,0.0011]
[1772063174784,5.04059475,2045.4,2045.0,0.0011]
[1772063175089,3.17963219,2045.4,2045.0,0.0011]
[1772063175650,3.17963219,2045.7,2045.0,0.0011]
[1772063176082,3.17963219,2045.7,2045.0,1.2235937]
[1772063176253,3.17963219,2045.7,2045.1,1.86096256]
[1772063176448,3.2099964,2045.9,2045.1,1.86096256]
[1772063176958,3.2099964,2045.9,2045.0,3.08455626]
[1772063177482,3.2099964,2045.9,2045.0,1.2235937]
[1772063177483,6.38962859,2045.9,2045.0,1.2235937]
[1772063177782,6.38962859,2045.9,2045.0,0.0011]
[1772063178177,6.38962859,2045.9,2045.1,1.86096256]
[1772063178678,8.60872751,2046.4,2045.0,0.0011]
[1772063178679,3.17963219,2046.3,2045.5,1.86096256]
[1772063178909,1.22177695,2046.2,2045.5,1.86096256]
[1772063179255,6.38938831,2046.3,2045.5,1.86096256]
[1772063180001,6.38938831,2046.3,2045.6,1.22213531]
[1772063180366,1.988,2046.3,2045.9,1.86096256]
[1772063180700,1.988,2046.3,2045.7,0.0011]
[1772063181000,1.988,2046.3,2045.8,1.86096256]
[1772063181559,1.988,2046.3,2045.7,0.0011]
[1772063181953,3.20972072,2046.3,2045.7,0.0011]
[1772063183156,6.38935291,2046.3,2045.7,0.0011]
[1772063183356,8.25031547,2046.3,2045.7,0.0011]
[1772063184205,6.38935291,2046.3,2045.7,0.0011]
[1772063184764,3.17963219,2046.2,2045.7,0.0011]
[1772063184964,3.20972072,2046.3,2045.7,0.0011]
[1772063185780,6.11481208,2046.3,2045.7,0.0011]
[1772063185981,2.90509136,2046.1,2045.7,0.0011]
[1772063186164,5.9879503,2046.0,2045.5,0.0011]
[1772063186492,1.22175589,2046.3,2045.6,1.86096256]
[1772063186986,2.90509136,2046.2,2045.5,0.0011]
[1772063187365,4.89309136,2046.2,2045.5,0.0011]
[1772063187785,1.988,2046.2,2045.6,1.86096256]
[1772063187993,3.20864578,2046.5,2045.8,1.86096256]
[1772063188293,3.2085984,2046.5,2045.9,1.2219561]
[1772063188487,1.987,2046.5,2046.0,1.86096256]
[1772063188704,0.001,2046.5,2046.1,1.86096256]
[1772063189071,0.001,2046.5,2045.9,1.2219561]
[1772063189386,0.001,2046.5,2045.6,8.60974954]
[1772063189387,2.90509136,2046.3,2045.6,1.22213531]
[1772063189558,1.22260307,2046.5,2045.7,1.86096256]
[1772063189988,0.001,2046.5,2045.7,1.86096256]
[1772063190168,0.001,2046.5,2045.9,1.86096256]
[1772063190691,0.001,2046.5,2046.1,1.86096256]
[1772063191186,0.001,2046.5,2045.8,1.86096256]
[1772063191771,0.001,2046.5,2045.6,3.08309787]
[1772063191968,0.001,2046.5,2045.8,1.86096256]
[1772063192163,0.001,2046.5,2046.1,1.22183666]
[1772063192770,0.001,2046.3,2046.1,1.22183666]
[1772063193164,0.001,2046.5,2046.1,1.22183666]
[1772063193387,1.86096256,2047.2,2046.4,1.86096256]
[1772063193388,4.11717184,2047.1,2046.4,1.86096256]
[1772063193921,4.11716175,2047.1,2046.4,1.86096256]
[1772063194096,2.8959102,2047.1,2046.4,1.86096256]
[1772063194460,1.22116213,2047.3,2046.6,1.86096256]
[1772063194664,4.11701329,2047.4,2046.6,1.86096256]
[1772063195087,0.001,2047.5,2047.0,1.86096256]
[1772063195473,0.001,2047.5,2047.2,1.86096256]
[1772063195674,0.001,2047.5,2046.8,1.86096256]
[1772063195985,2.8959102,2047.4,2046.5,1.22159784]
[1772063196692,1.2211205,2047.3,2046.5,1.22159784]
[1772063197185,2.8959102,2047.2,2046.5,1.22159784]
[1772063197565,1.22108597,2047.4,2046.5,1.22159784]
[1772063198174,8.60497539,2048.0,2046.5,1.22159784]
[1772063198175,2.8959102,2048.2,2047.1,1.86096256]
[1772063198491,2.8959102,2047.8,2047.0,1.879]
[1772063198697,4.11674719,2047.8,2047.1,1.2212398]
[1772063198886,0.001,2047.7,2047.1,1.2212398]
[1772063199396,2.8959102,2047.8,2047.1,1.2212398]
[1772063199595,0.001,2047.6,2047.1,3.08220236]
[1772063199974,1.978,2048.0,2047.1,3.08220236]
[1772063200297,2.8959102,2047.7,2047.0,3.10025415]
[1772063200678,0.001,2047.6,2047.0,3.10025415]
[1772063200995,0.001,2047.6,2047.0,4.96121671]
[1772063201204,1.22067476,2048.1,2047.2,1.86096256]
[1772063201439,2.8959102,2048.3,2047.4,1.86096256]
[1772063201768,4.75687276,2048.2,2047.2,1.86096256]
[1772063201969,4.94238987,2048.4,2047.0,3.10025415]
[1772063201970,2.8959102,2047.9,2047.0,3.10025415]
[1772063202289,2.8959102,2047.9,2046.8,1.22138054]
[1772063202290,2.8959102,2047.4,2046.8,1.22138054]
[1772063202483,2.8959102,2047.4,2046.7,3.08244103]
[1772063202666,1.22088196,2047.7,2046.7,3.08244103]
[1772063202872,4.75687276,2047.4,2046.7,1.22147847]
[1772063203071,2.8959102,2047.3,2046.7,1.22147847]
[1772063203809,2.8959102,2047.3,2046.6,1.88]
[1772063204100,2.8959102,2047.2,2046.5,1.22159137]
[1772063204471,2.8959102,2047.2,2046.2,1.881]
[1772063204669,2.8959102,2046.9,2046.2,3.10272933]
[1772063204993,2.8959102,2046.7,2045.8,3.74096256]
[1772063205606,2.8959102,2046.7,2046.6,0.0011]
[1772063205787,2.8959102,2046.7,2045.8,3.74096256]
[1772063206192,4.75687276,2046.6,2045.8,1.88]
[1772063206394,4.75687276,2046.6,2046.1,0.0011]
[1772063206590,2.8959102,2046.6,2046.1,0.0011]
[1772063206794,1.86096256,2046.8,2045.5,6.68700675]
[1772063206795,4.11757419,2046.4,2045.5,0.0011]
[1772063207014,4.11757419,2046.4,2045.5,1.86206256]
[1772063207316,2.8959102,2046.3,2045.5,0.0011]
[1772063208813,4.11768715,2046.2,2045.5,0.0011]
[1772063209014,2.8959102,2045.8,2045.5,0.0011]
[1772063209193,4.11768715,2046.2,2045.5,0.0011]
[1772063209908,2.8959102,2046.2,2045.5,1.86206256]
[1772063210086,1.22162242,2046.5,2045.7,1.86096256]
[1772063210287,4.1174954,2046.6,2045.7,1.86096256]
[1772063210487,2.8959102,2046.6,2045.9,1.86096256]
[1772063210718,4.11744917,2046.6,2045.7,1.877]
[1772063211012,2.8959102,2046.4,2045.7,1.22203423]
[1772063211221,2.8959102,2046.3,2045.6,1.22209057]
[1772063212504,1.22153897,2046.6,2045.7,1.86096256]
[1772063212692,2.8959102,2047.5,2046.5,1.86096256]
[1772063212898,2.8959102,2047.5,2046.7,1.86096256]
[1772063212899,4.11691792,2047.5,2046.7,1.86096256]
[1772063213096,5.97788048,2047.5,2046.6,1.22153816]
[1772063213497,4.11691792,2047.5,2046.6,1.22153816]
[1772063213700,6.08991792,2047.5,2046.6,1.22153816]
[1772063213933,1.86096256,2047.4,2046.6,1.22153816]
[1772063214121,4.75687276,2047.2,2046.6,1.22153816]
[1772063214322,2.8959102,2047.2,2046.6,1.22153816]
[1772063214899,2.8959102,2047.2,2046.0,10.3857719]
[1772063214900,2.8959102,2047.0,2046.1,4.88712208]
[1772063215595,7.8293286,2046.9,2046.1,4.88712208]
[1772063215799,9.69029116,2046.9,2046.1,4.88712208]
[1772063216117,4.88545253,2046.8,2046.2,1.86096256]
[1772063216309,4.88545253,2046.8,2046.1,4.88712208]
[1772063216508,4.80483863,2046.5,2045.5,0.0011]
[1772063216819,2.94387607,2046.3,2045.5,1.22325137]
[1772063217125,2.94387607,2046.3,2045.5,3.08421393]
[1772063217324,4.88545253,2046.2,2045.5,3.08421393]
[1772063217826,4.88545253,2046.2,2045.7,0.0011]
[1772063218709,4.88545253,2046.2,2045.7,1.86206256]
[1772063218937,0.001,2046.6,2045.8,1.22201583]
[1772063219102,0.001,2046.6,2046.1,1.86096256]
[1772063219304,0.001,2046.6,2045.8,1.22201583]
[1772063219305,0.001,2046.6,2045.9,1.87]
[1772063220234,2.94387607,2046.5,2045.8,1.22201583]
[1772063220756,1.22254428,2046.6,2045.5,0.0011]
[1772063220757,2.60366093,2046.1,2045.5,0.0011]
[1772063220912,4.16583217,2045.9,2045.5,0.0011]
[1772063221315,2.94387607,2045.9,2045.5,0.0011]
[1772063221515,4.16564962,2046.3,2045.5,0.0011]
[1772063221753,2.94387607,2046.3,2045.5,0.0011]
[1772063221970,0.001,2046.6,2045.8,2.60366093]
[1772063222414,4.16641618,2046.6,2045.7,1.87]
[1772063222619,2.94387607,2046.5,2045.7,1.87]
[1772063222846,2.94387607,2046.5,2045.8,1.22201583]
[1772063223050,0.001,2046.6,2046.0,2.60366093]
[1772063223223,0.001,2046.6,2046.2,2.60366093]
[1772063223415,0.001,2046.6,2046.0,2.60366093]
[1772063223616,0.001,2046.6,2046.2,2.60366093]
[1772063224133,2.94387607,2047.3,2046.4,2.60366093]
[1772063224658,4.16500349,2047.3,2046.2,4.47166093]
[1772063224860,4.16500349,2047.3,2046.2,1.868]
[1772063224861,2.94387607,2047.2,2046.2,1.868]
[1772063225518,2.94387607,2046.8,2045.8,4.88785228]
[1772063225818,2.94387607,2046.6,2045.9,1.2219561]
[1772063226218,2.94387607,2046.6,2045.6,4.8884972]
[1772063226423,2.94387607,2046.4,2045.6,1.22213531]
[1772063227222,2.94387607,2046.4,2045.6,3.82579624]
[1772063227421,4.16565302,2046.2,2045.5,0.0011]
[1772063227731,2.94387607,2046.2,2045.5,0.0011]
[1772063228133,1.2217021,2046.4,2045.5,0.0011]
[1772063228346,2.94387607,2046.3,2045.5,0.0011]
[1772063228541,2.94387607,2046.1,2045.5,0.0011]
[1772063228962,2.94387607,2045.9,2045.5,0.0011]
[1772063229259,2.94387607,2045.9,2045.3,0.0011]
[1772063229424,4.16588859,2045.9,2045.7,0.0011]
[1772063229626,2.94387607,2045.8,2045.3,0.0011]
[1772063229861,2.94387607,2045.7,2045.3,0.0011]
[1772063230027,2.94387607,2045.5,2045.0,0.0011]
[1772063231646,4.16609863,2045.5,2045.0,0.0011]
[1772063231969,1.22222256,2045.5,2045.0,0.0011]
[1772063232128,2.94387607,2046.6,2045.4,2.60366093]
[1772063232461,2.60366093,2046.0,2045.0,0.0011]
[1772063232664,2.94387607,2045.9,2045.0,0.0011]
[1772063232873,2.60366093,2045.8,2045.0,0.0011]
[1772063233162,2.94387607,2045.7,2045.0,0.0011]
[1772063233769,4.56366093,2046.0,2045.0,0.0011]
[1772063233770,2.94387607,2045.9,2045.0,1.22359388]
[1772063235280,3.18190816,2046.0,2045.0,1.22359388]
[1772063235281,2.94387607,2045.7,2045.0,1.22359388]
[1772063236447,2.94387607,2045.7,2045.0,0.0011]
[1772063236448,4.16596431,2045.7,2045.0,0.0011]
[1772063236652,2.94387607,2045.5,2045.0,0.0011]
[1772063237456,7.36795048,2045.9,2045.0,0.0011]
[1772063237457,2.94387607,2045.9,2045.2,2.60366093]
[1772063237668,1.96,2046.0,2045.2,2.60366093]
[1772063237826,1.96,2046.0,2045.3,1.22231457]
[1772063238870,4.90387607,2046.0,2045.3,1.22231457]
[1772063239272,2.94387607,2046.4,2045.6,2.60366093]
[1772063239810,2.94387607,2046.4,2045.7,1.22207557]
[1772063240307,2.94387607,2046.3,2045.7,1.22207557]
[1772063240864,1.22166329,2046.4,2045.7,1.22207557]
[1772063241095,4.16537964,2046.7,2045.7,1.22207557]
[1772063241804,2.94387607,2046.7,2045.7,1.22207557]
[1772063242114,0.001,2046.9,2046.0,2.60366093]
[1772063242672,1.22236098,2046.9,2046.0,2.60366093]
[1772063242993,0.001,2046.9,2046.0,2.60366093]
[1772063243873,0.001,2046.9,2046.4,1.22165754]
[1772063244888,5.548537,2046.9,2046.0,1.22183666]
[1772063245089,2.94487607,2046.9,2046.0,3.82549759]
[1772063245599,0.001,2046.9,2046.2,2.60366093]
[1772063246880,0.001,2046.9,2046.3,1.22171724]
[1772063247183,0.001,2046.9,2046.6,2.60366093]
[1772063247383,0.001,2046.9,2046.4,2.60366093]
[1772063247602,0.001,2046.9,2046.6,2.60366093]
[1772063247796,0.001,2046.9,2046.4,2.60366093]
[1772063248584,0.001,2046.9,2046.7,2.60366093]
[1772063248779,2.94387607,2047.3,2046.7,2.60366093]
[1772063249002,2.94387607,2047.3,2046.8,1.2214188]
[1772063249408,1.942,2047.8,2046.9,2.60366093]
[1772063249611,1.942,2047.8,2046.8,3.82507973]
[1772063249612,6.05502563,2047.8,2046.8,3.82507973]
[1772063250902,4.11313079,2047.7,2046.8,3.82507973]
[1772063251290,4.11308258,2047.7,2046.8,3.82507973]
[1772063251489,2.89219992,2047.7,2047.0,2.60366093]
[1772063251695,2.89219992,2047.7,2046.8,3.82507973]
[1772063251696,4.11309787,2047.7,2046.8,3.82507973]
[1772063252022,2.81468782,2047.6,2046.8,1.2214188]
[1772063252223,2.81468782,2047.6,2046.7,3.07343921]
[1772063252429,2.81468782,2047.5,2046.7,3.073474]
[1772063252804,2.81468782,2047.1,2045.9,4.88768446]
[1772063253113,2.60366093,2047.2,2045.5,4.88867968]
[1772063253114,2.81468782,2046.5,2045.5,4.88867968]
[1772063253897,1.22147847,2046.7,2045.4,0.0011]
[1772063253898,2.81468782,2046.2,2045.4,0.0011]
[1772063254111,2.81468782,2046.2,2045.4,1.22333743]
[1772063254449,2.81468782,2046.2,2045.4,0.0011]
[1772063254745,2.81468782,2046.0,2045.4,0.0011]
[1772063254949,4.03664392,2045.9,2045.4,0.0011]
[1772063255149,2.81468782,2045.9,2045.4,0.0011]
[1772063255463,2.81468782,2046.9,2045.7,2.60366093]
[1772063255751,2.81468782,2046.9,2045.6,2.60366093]
[1772063256147,2.81468782,2046.9,2045.8,2.60366093]
[1772063256348,2.60366093,2046.9,2045.8,2.60366093]
[1772063256554,2.81468782,2046.8,2045.8,2.60366093]
[1772063257889,2.81468782,2046.8,2046.0,2.60366093]
[1772063257890,2.81468782,2046.7,2046.0,2.60366093]
[1772063258424,4.03596545,2047.1,2046.2,2.60366093]
[1772063259730,4.03596545,2047.1,2045.8,6.41691421]
[1772063259731,2.81468782,2046.7,2045.8,1.22197099]
[1772063259932,2.81468782,2046.7,2045.7,2.60366093]
[1772063260258,2.81468782,2046.7,2045.9,2.60366093]
[1772063260446,2.81468782,2046.7,2045.6,5.67274994]
[1772063260625,2.81468782,2046.7,2045.8,2.60366093]
[1772063261025,2.81468782,2046.5,2045.6,3.06908901]
[1772063261226,2.81468782,2046.5,2045.5,4.88855077]
[1772063261227,2.81468782,2046.5,2045.5,1.2221469]
[1772063261848,2.81468782,2046.3,2045.5,1.2221469]
[1772063262565,2.81468782,2046.3,2045.6,2.60366093]
[1772063263438,1.22163878,2046.5,2045.8,2.60366093]
[1772063263640,1.22163878,2046.5,2045.6,2.60366093]
[1772063263973,1.22163878,2046.5,2045.7,1.22207557]
[1772063264160,2.81468782,2046.4,2045.7,1.22207557]
[1772063264951,2.81468782,2046.4,2045.6,7.49196322]
[1772063264952,2.81468782,2046.4,2045.6,3.82574998]
[1772063265153,2.81468782,2046.4,2045.5,1.2221673]
[1772063265876,2.81468782,2046.4,2045.6,0.0011]
[1772063265877,2.81468782,2046.1,2045.6,0.0011]
[1772063267176,1.22175065,2046.3,2045.6,0.0011]
[1772063267473,7.7015568,2046.4,2045.7,2.60366093]
[1772063267474,4.036393,2046.4,2045.7,2.60366093]
[1772063267881,4.036393,2046.4,2045.8,0.03591765]
[1772063268277,4.036393,2046.4,2045.8,1.25790337]
[1772063268782,4.036393,2046.4,2045.7,1.2220515]
[1772063269384,4.036393,2046.4,2045.8,0.03590711]
[1772063269585,4.036393,2046.4,2045.6,1.22318824]
[1772063270505,4.036393,2046.4,2045.7,2.60366093]
[1772063270815,2.81468782,2046.4,2045.7,2.60366093]
[1772063270973,1.22158713,2046.6,2046.1,2.60366093]
[1772063271176,1.22251974,2046.7,2046.1,2.60366093]
[1772063271799,1.22248232,2046.7,2046.1,2.60366093]
[1772063272006,1.22248232,2046.7,2046.0,2.60366093]
[1772063272321,2.81468782,2046.6,2045.6,2.60476093]
[1772063272535,2.60366093,2046.6,2045.6,0.0011]
[1772063272684,2.81468782,2046.3,2045.6,0.0011]
[1772063274602,2.81468782,2046.1,2045.6,0.0011]
[1772063276902,1.22189638,2046.0,2045.6,0.0011]
[1772063277418,3.84685407,2046.4,2045.6,2.60476093]
[1772063278621,1.22165754,2046.4,2045.8,2.60366093]
[1772063278911,2.62519653,2046.3,2045.6,0.0011]
[1772063279115,2.62519653,2046.3,2045.8,0.0011]
[1772063280198,2.62519653,2046.3,2045.6,0.0011]
[1772063280790,2.62519653,2046.1,2045.6,0.0011]
[1772063281098,2.62519653,2046.1,2045.3,0.0011]
[1772063281099,2.62519653,2045.7,2045.3,0.0011]
[1772063281599,6.8805216,2046.0,2045.0,0.0011]
[1772063281600,2.62519653,2045.5,2045.0,0.0011]
[1772063281800,2.62519653,2045.8,2045.0,3.085402]
[1772063282039,3.15689638,2046.0,2045.2,1.86181261]
[1772063282326,5.78209291,2046.0,2045.2,1.86181261]
[1772063282891,5.78209291,2046.0,2045.3,1.22231457]
[1772063283091,1.935,2046.0,2045.5,1.86181261]
[1772063283287,4.88711271,2046.2,2045.7,1.86181261]
[1772063283288,1.2218021,2046.2,2045.7,1.86181261]
[1772063283610,1.935,2046.4,2045.9,1.86181261]
[1772063284111,3.15666893,2046.4,2045.9,1.86181261]
[1772063284333,3.15666893,2046.4,2045.6,3.17650714]
[1772063284709,0.001,2046.7,2046.2,1.86181261]
[1772063284929,2.62519653,2046.6,2045.7,1.22205377]
[1772063285169,2.62519653,2046.6,2045.9,1.86181261]
[1772063285813,2.62519653,2046.6,2045.7,1.22205377]
[1772063286011,2.62519653,2046.6,2045.6,3.08390341]
[1772063286210,2.62519653,2046.6,2045.8,1.86181261]
[1772063286733,2.62519653,2046.5,2045.6,3.08390341]
[1772063286936,2.62519653,2046.3,2045.5,1.834]
[1772063287310,2.62519653,2046.1,2045.3,1.222296]
[1772063287607,2.62519653,2046.0,2045.4,1.86181261]
[1772063287806,3.15565754,2046.4,2045.6,1.86181261]
[1772063287807,2.62519653,2046.3,2045.6,1.86181261]
[1772063288213,2.62519653,2046.2,2045.2,1.86181261]
[1772063288435,3.15565754,2046.4,2045.1,1.22349723]
[1772063288436,2.62519653,2046.0,2045.1,0.0011]
[1772063288629,2.62519653,2045.6,2045.1,0.0011]
[1772063289247,3.84737632,2045.6,2045.1,0.0011]
[1772063289433,2.62519653,2045.5,2044.9,0.0011]
[1772063290642,4.55819653,2045.4,2044.9,0.0011]
[1772063290931,2.62519653,2045.4,2044.9,0.0011]
[1772063291148,1.22231457,2045.3,2044.9,0.0011]
[1772063292094,5.78025263,2045.8,2045.4,0.0011]
[1772063292565,1.933,2045.8,2045.4,0.0011]
[1772063293465,3.15501615,2045.8,2045.4,0.0011]
[1772063293843,5.78021268,2045.8,2045.4,0.0011]
[1772063294257,2.62519653,2045.7,2045.2,0.0011]
[1772063294642,2.62519653,2045.7,2044.9,0.0011]
[1772063294643,2.62519653,2045.6,2044.9,0.0011]
[1772063295161,3.15501615,2045.8,2044.9,0.0011]
[1772063295162,2.62519653,2045.4,2044.9,0.0011]
[1772063295339,3.8475111,2045.3,2044.9,0.0011]
[1772063296246,3.8475111,2045.3,2044.6,0.0011]
[1772063296247,2.62519653,2045.0,2044.6,0.0011]
[1772063296452,4.56119653,2045.0,2044.6,0.0011]
[1772063296655,2.62519653,2044.9,2044.6,0.0011]
[1772063297678,1.22261345,2044.8,2044.6,0.0011]
[1772063298945,1.22245804,2045.1,2044.6,0.0011]
[1772063299149,3.84761882,2045.2,2044.6,0.0011]
[1772063299979,2.62519653,2045.1,2044.6,0.0011]
[1772063302274,2.62519653,2044.9,2044.4,0.0011]
[1772063302480,1.942,2044.8,2044.4,0.0011]
[1772063303104,4.56719653,2044.8,2044.4,0.0011]
[1772063303410,2.62519653,2044.7,2044.4,0.0011]
[1772063303772,1.942,2044.8,2044.4,0.0011]
[1772063304103,1.942,2044.8,2044.5,0.0011]
[1772063304409,3.16465983,2044.8,2044.5,0.0011]
[1772063304972,2.62519653,2044.7,2044.3,0.0011]
[1772063305290,2.62519653,2044.5,2043.7,1.22327003]
[1772063305501,4.56919653,2044.4,2043.6,1.86181261]
[1772063306491,1.22291248,2044.3,2043.7,1.22327151]
[1772063306815,2.5281363,2044.2,2043.4,1.2234041]
[1772063307212,2.5281363,2044.2,2043.4,3.08521671]
[1772063307418,2.5281363,2044.2,2043.6,1.86181261]
[1772063307796,1.22291248,2044.3,2043.6,1.86181261]
[1772063307997,1.944,2044.4,2043.8,1.86181261]
[1772063308305,3.16685906,2044.4,2043.6,1.86181261]
[1772063308614,3.16685906,2044.4,2043.7,1.22327151]
[1772063308818,3.16685906,2044.4,2043.6,1.86181261]
[1772063308819,5.69499536,2044.4,2043.6,1.86181261]
[1772063309203,2.5281363,2044.6,2043.8,1.86181261]
[1772063310405,2.5281363,2044.6,2043.5,4.89344602]
[1772063310406,2.5281363,2044.3,2043.5,6.75525863]
[1772063311090,1.86181261,2044.0,2043.1,4.89438242]
[1772063311290,2.5281363,2044.1,2043.1,6.75619503]
[1772063311527,2.5281363,2044.1,2043.3,1.86181261]
[1772063311904,2.5281363,2044.1,2043.2,2.98518751]
[1772063312994,1.22309197,2044.0,2043.3,1.22351098]
[1772063313193,3.99275462,2044.0,2043.3,1.22351098]
[1772063314600,3.99275462,2044.0,2042.9,1.22371214]
[1772063314601,4.63147526,2043.8,2042.9,1.22371214]
[1772063314908,2.76966265,2043.7,2042.9,1.22371214]
[1772063315414,1.22333137,2043.6,2042.9,1.22371214]
[1772063315615,1.22333137,2043.6,2043.5,0.0011]
[1772063315821,1.22333137,2043.6,2042.7,4.89545722]
[1772063315822,2.76966265,2043.5,2042.7,4.89532958]
[1772063316013,2.76966265,2043.3,2042.5,1.2239902]
[1772063316333,1.942,2043.4,2043.0,0.0011]
[1772063316334,2.76966265,2043.2,2043.0,0.0011]
[1772063316936,2.76966265,2043.2,2042.3,1.86181261]
[1772063317226,2.76966265,2043.2,2042.2,4.89655961]
[1772063317227,2.76966265,2043.2,2042.5,1.86181261]
[1772063317445,3.9932934,2043.1,2042.4,1.22400975]
[1772063317606,3.9932934,2043.1,2042.3,6.75808414]
[1772063317607,2.76966265,2043.0,2042.3,1.22406556]
[1772063318338,2.76966265,2042.8,2041.9,1.86181261]
[1772063319402,2.76966265,2042.7,2042.0,1.22428991]
[1772063319604,2.76966265,2042.7,2041.6,8.62126455]
[1772063319605,2.76966265,2042.6,2041.7,4.89778714]
[1772063319930,2.76966265,2042.6,2041.7,1.2244698]
[1772063320430,2.76966265,2042.6,2041.9,1.86181261]
[1772063321333,1.22386473,2042.8,2042.1,1.86181261]
[1772063321741,1.22386473,2042.8,2042.2,1.22417001]
[1772063322042,5.93545736,2042.9,2042.2,3.08598262]
[1772063322337,3.16579471,2042.9,2042.2,3.08598262]
[1772063322505,5.93545736,2042.9,2042.2,3.08598262]
[1772063322705,5.93545736,2042.9,2041.8,1.22440983]
[1772063322706,2.76966265,2042.6,2041.8,1.22440983]
[1772063323837,5.93541391,2042.9,2042.1,1.86181261]
[1772063324021,1.942,2042.9,2042.3,1.86181261]
[1772063325439,4.89359027,2043.5,2042.7,1.86181261]
[1772063325440,3.16351608,2043.3,2042.7,1.86181261]
[1772063325946,2.76966265,2043.5,2042.8,1.86181261]
[1772063325947,3.99305649,2043.5,2042.8,1.86181261]
[1772063326232,2.76966265,2043.5,2042.8,1.86181261]
[1772063326612,6.50864691,2043.8,2043.0,1.86181261]
[1772063327613,3.99287543,2043.8,2043.2,1.86181261]
[1772063327833,3.99287543,2043.8,2043.3,1.22351098]
[1772063328040,3.99287543,2043.8,2043.2,3.0853419]
[1772063328234,3.99287543,2043.8,2043.2,1.22352929]
[1772063328540,3.99287543,2043.8,2043.1,1.22358526]
[1772063329839,2.76966265,2043.7,2043.0,1.22365055]
[1772063330470,2.76966265,2043.7,2043.0,3.08546316]
[1772063331055,2.76966265,2043.7,2043.2,1.86181261]
[1772063331936,2.76966265,2043.7,2043.3,1.22351098]
[1772063332135,2.76966265,2043.7,2042.9,1.22479065]
[1772063332136,3.99297265,2043.7,2042.9,1.22479065]
[1772063332336,3.99297265,2043.7,2043.0,4.89468621]
[1772063333559,2.76966265,2043.7,2043.0,4.89468621]
[1772063334052,2.76966265,2043.7,2042.9,1.22479065]
[1772063334237,2.76966265,2043.7,2043.1,1.86181261]
[1772063334641,2.76966265,2043.7,2043.3,1.86181261]
[1772063334831,2.76966265,2043.7,2043.1,1.86181261]
[1772063335030,3.99294604,2043.7,2043.1,1.86181261]
[1772063335356,3.99294604,2043.7,2042.9,1.22479065]
[1772063336147,2.45736079,2043.6,2042.9,1.22479065]
[1772063336839,2.45736079,2043.6,2043.0,1.86181261]
[1772063338450,2.45736079,2043.6,2043.1,1.22363075]
[1772063338766,3.68069719,2043.6,2043.1,1.22363075]
[1772063338959,2.45736079,2043.5,2042.9,0.0011]
[1772063339632,2.45736079,2043.4,2042.9,0.0011]
[1772063339853,2.45736079,2043.3,2042.9,0.0011]
[1772063340547,3.6809195,2043.3,2042.9,0.0011]
[1772063340755,1.94,2043.4,2042.9,0.0011]
[1772063341039,3.16346269,2043.4,2043.2,0.0011]
[1772063341245,3.16346269,2043.4,2042.9,0.0011]
[1772063341246,2.45736079,2043.3,2042.9,0.0011]
[1772063341541,2.45736079,2043.3,2043.0,0.0011]
[1772063341852,2.45736079,2043.3,2042.7,0.0011]
[1772063342662,2.45736079,2043.1,2042.7,0.0011]
[1772063343873,1.22357086,2043.2,2042.4,0.0011]
[1772063343874,2.45736079,2042.9,2042.4,0.0011]
[1772063344646,2.45736079,2042.7,2042.4,0.0011]
[1772063345169,2.45736079,2042.5,2041.7,0.003]
[1772063345344,2.45736079,2042.5,2041.7,1.2274693]
[1772063345548,2.45736079,2042.5,2042.0,2.61253531]
[1772063346068,1.942,2042.6,2041.8,2.61253531]
[1772063346257,4.39936079,2042.6,2041.8,2.61253531]
[1772063346460,4.39936079,2042.6,2042.0,2.61253531]
[1772063346461,1.942,2042.6,2042.0,2.61253531]
[1772063346766,1.942,2043.1,2042.4,2.61253531]
[1772063346959,1.942,2043.1,2043.0,2.0]
[1772063347158,5.62278173,2043.5,2043.0,1.99468859]
[1772063347674,2.45736079,2043.4,2043.0,1.99468859]
[1772063347977,2.45736079,2043.4,2042.4,2.61253531]
[1772063348363,2.45736079,2043.4,2042.4,5.18728203]
[1772063348564,2.45736079,2043.2,2042.2,3.03211541]
[1772063348875,5.62399154,2043.1,2042.2,3.03211541]
[1772063349281,2.45736079,2042.8,2041.8,3.83688518]
[1772063349455,4.39936079,2042.7,2041.9,1.22434987]
[1772063350075,4.39936079,2042.7,2042.0,2.61253531]
[1772063350076,1.942,2042.7,2042.0,2.61253531]
[1772063350276,1.942,2042.7,2042.2,2.61253531]
[1772063350855,3.16590019,2042.7,2042.0,2.61253531]
[1772063351068,5.62326098,2042.7,2041.9,1.22430572]
[1772063351270,2.45736079,2042.6,2041.7,1.22742239]
[1772063351466,2.45736079,2042.6,2041.8,2.61253531]